Cogmind - Beta 13 @@@ ROGUE MODE // 2024.06.08 @ 11:33:07 Player: Sage Result: Destroyed by S-10 Pest with Light Assault Rifle Performance ------------- Evolutions (0) 0 Regions Visited (2) 400 Robots Destroyed (19) 95 Value Destroyed (290) 290 Prototype IDs (0) 0 Alien Tech Used (0) 0 Bonus (0) 0 TOTAL SCORE: 785 Bonus ------- None Cogmind --------- Core Integrity 0/250 Matter 300/300 Energy 125/125 System Corruption 0% Temperature Cool (0) Movement Rolling (95) Ox1 Location -10/Mines Parts ------- > --- POWER (1) -------- Light Ion Engine > --- PROPULSION (2) --- Wheel Wheel > --- UTILITY (2) ------ Large Storage Unit Signal Interpreter > --- WEAPON (2) ------- Light Assault Rifle Light Assault Rifle > --- INVENTORY (15) --- Light Ion Engine Wheel Wheel Hover Unit Hover Unit Small Storage Unit Small Storage Unit EM Pulse Gun Small Laser Light Assault Rifle Peak State ------------ > --- POWER ------------ Light Ion Engine > --- PROPULSION ------- Wheel Compact Wheel > --- UTILITY ---------- Small Storage Unit Improved Terrain Scanner > --- WEAPON ----------- Assault Rifle Light Assault Rifle > --- INVENTORY -------- Light Ion Engine Wheel Small Storage Unit [Rating: 9] Favorites ----------- Power Light Ion Engine Engine Light Ion Engine Propulsion Wheel Wheel Wheel Utility Signal Interpreter Device Improved Terrain Scanner Storage Large Storage Unit Processor Signal Interpreter Weapon Light Assault Rifle Energy Gun Small Laser Ballistic Gun Light Assault Rifle Build | -11 -10 -10 ------- Run | Yrd Mat Min Slots Evolved . | . . . Power . | . . . Propulsion . | . . . Utility . | . . . Weapon . | . . . Parts Attached 17 | 7 5 5 Power 3 | 1 1 1 Engine 3 | 1 1 1 Core . | . . . Reactor . | . . . Propulsion 4 | 2 . 2 Treads . | . . . Leg . | . . . Wheel 4 | 2 . 2 Hover . | . . . Flight . | . . . Utility 5 | 2 3 . Device 1 | 1 . . Storage 2 | 1 1 . Processor 2 | . 2 . Hackware . | . . . Protection . | . . . Artifact . | . . . Weapon 5 | 2 1 2 Energy Gun 1 | . 1 . Energy Cannon . | . . . Ballistic Gun 4 | 2 . 2 Ballistic Cannon . | . . . Launcher . | . . . Special Weapon . | . . . Impact Weapon . | . . . Slashing Weapon . | . . . Piercing Weapon . | . . . Special Melee Weapon . | . . . Unidentified Prototypes . | . . . Parts Lost 4 | . 1 3 Power 2 | . 1 1 Propulsion 2 | . . 2 Utility . | . . . Weapon . | . . . Highest Loss Streak 2 | . 1 2 To Critical Strikes . | . . . Average Slot Usage (%) 98 | . 100 97 Engine 13 | . 14 12 Wheel 27 | . 28 27 Device 4 | . 7 . Storage 14 | . 14 14 Processor 9 | . 7 14 Energy Gun 7 | . 6 8 Ballistic Gun 20 | . 21 19 Naked Turns . | . . . Heaviest Build 25 | 12 25 25 Greatest Support 26 | 26 26 26 Greatest Overweight (x) 1 | . . 1 Average Overweight (x) . | . . . Largest Inventory Capacity 15 | 8 15 15 Average Capacity 11 | 7 9 15 Most Carried 15 | 5 8 15 Average Carried 7 | 2 7 10 Final Capacity 15 | 8 15 15 Final Carried 10 | 5 8 10 Class Distribution -------------------- 91% | Mutant 8% | Scavenger-Mutant Dominant Class ---------------- Mutant | -10/Materials Mutant | -10/Mines Resources | -11 -10 -10 ----------- Run | Yrd Mat Min Matter Collected 546 | 329 129 88 Remotely . | . . . Salvage Created 468 | 97 208 163 Parts 38 | 7 15 16 Haulers Intercepted . | . . . Recyclers Shooed . | . . . Parts Field Recycled . | . . . Retrieved Matter . | . . . Parts Self-Destructed . | . . . Prevented . | . . . Kills | -11 -10 -10 ------- Run | Yrd Mat Min Combat Hostiles Destroyed 14 | . 8 6 Guns 14 | . 8 6 Classes Destroyed 5 | 2 3 . Worker 1 | . 1 . Tunneler 3 | 2 . 1 Recycler 1 | 1 . . Swarmer 10 | . 6 4 Grunt 4 | . 2 2 Best Kill Streak 3 | 1 3 3 Combat Bots Only 3 | . 3 3 Max Kills in Single Turn 2 | 1 2 1 Gunslinging 1 | . 1 . Exploded . | . . . Melee . | . . . Uniques/NPCs Destroyed . | . . . Combat | -11 -10 -10 -------- Run | Yrd Mat Min Hostile Shots Fired 106 | . 51 55 Missed 23 | . 7 16 Damage Taken 757 | 1 387 369 Core 254 | . 136 118 Absorbed by Shields . | . . . Core Remaining (%) 100 | 100 . . Volleys Fired 79 | 15 34 30 Largest 2 | 2 2 2 Hottest 60 | 40 60 60 Shots Fired 154 | 30 68 56 Gun 154 | 30 68 56 Cannon . | . . . Launcher . | . . . Special . | . . . Kinetic 124 | 30 53 41 Thermal 30 | . 15 15 Explosive . | . . . Electromagnetic . | . . . Robot Hit Streak 14 | 5 5 14 Robot Miss Streak 8 | 3 4 8 Penetration Max . | . . . Secondary Targets 1 | . 1 . Max Gunslinging Chain 1 | . 1 . Shots Hit Robots 82 | 18 34 30 Core Hits 32 | 7 14 11 Critical Kills . | . . . Critical Parts Destroyed . | . . . Critical Strikes . | . . . Melee Attacks . | . . . Impact . | . . . Slashing . | . . . Piercing . | . . . Sneak Attacks . | . . . Combat Hostiles . | . . . Follow-up Attacks . | . . . Damage Inflicted 832 | 172 380 280 Guns 829 | 169 380 280 Cannons . | . . . Explosions . | . . . Melee . | . . . Ramming 3 | 3 . . Kinetic 606 | 169 281 156 Thermal 223 | . 99 124 Explosive . | . . . Electromagnetic . | . . . Impact . | . . . Slashing . | . . . Piercing . | . . . Highest Corruption . | . . . Average Corruption . | . . . Corruption Purged . | . . . Corruption Blocked . | . . . Overload Shots . | . . . Overflow Damage . | . . . Projectiles . | . . . Explosions . | . . . Melee . | . . . Knockbacks . | . . . Impact . | . . . Kinetic . | . . . Secondary . | . . . Self-Inflicted Damage 1 | 1 . . Shots . | . . . Rammed 1 | 1 . . Targets Rammed 1 | 1 . . Kicked . | . . . Crushed . | . . . Highest Temperature 112 | . 91 112 Average Temperature 41 | . 35 47 Received Heat Transfer 141 | . 69 72 Siege Activations . | . . . Robots Corrupted . | . . . Combat Hostiles . | . . . Parts Fried . | . . . Impact Corruptions . | . . . Robots Melted . | . . . Combat Hostiles . | . . . Parts Melted . | . . . Heat Transferred 500 | . 225 275 Parts Sabotaged . | . . . Parts Stolen . | . . . Parts Stripped . | . . . Power Chain Reactions . | . . . Alert | -11 -10 -10 ------- Run | Yrd Mat Min Peak Influence 244 | 15 244 229 Initial 19 | . 9 19 Average 87 | 6 107 84 Maximum Alert Level 1 | . 1 1 Low Security (%) 92 | 100 86 97 Level 1 7 | . 13 2 Level 2 . | . . . Level 3 . | . . . Level 4 . | . . . Level 5 . | . . . High Security . | . . . Max Security . | . . . Squads Dispatched 2 | . 2 . Investigation 1 | . 1 . Extermination . | . . . Reinforcement 1 | . 1 . Assault . | . . . Garrison . | . . . Intercept . | . . . Searches Triggered . | . . . Construction Impeded . | . . . Haulers Reinforced . | . . . Active Scanning Responses . | . . . Cargo Convoy Interrupts . | . . . Stealth | -11 -10 -10 --------- Run | Yrd Mat Min Distress Signals . | . . . Communications Jammed . | . . . Distress Signals . | . . . Times Spotted 25 | . 15 10 Peak Tracking Total 3 | . 3 3 Tactical Retreats 5 | . 3 2 Traps | -11 -10 -10 ------- Run | Yrd Mat Min Traps Triggered 1 | . 1 . Indirectly . | . . . Trap Hack Attempts . | . . . Triggered . | . . . Disarmed . | . . . Reprogrammed . | . . . Reused 4 | . . 4 Traps Extracted . | . . . Installed 5 | . . 5 Triggered 4 | . . 4 Most Traps Carried 5 | . . 5 Machines | -11 -10 -10 ---------- Run | Yrd Mat Min Machines Disabled . | . . . Max in Single Turn . | . . . Machines Repaired . | . . . Machines Dismantled . | . . . Machines Sabotaged . | . . . Overloaded Fab Kills . | . . . Hacking | -11 -10 -10 --------- Run | Yrd Mat Min Machines Accessed 6 | . 6 . Terminals 6 | . 6 . Fabricators . | . . . Repair Stations . | . . . Recycling Units . | . . . Scanalyzers . | . . . Garrison Access . | . . . Total Hacks 11 | . 11 . Successful 4 | . 4 . Failed 7 | . 7 . Catastrophic 4 | . 4 . Database Lockouts . | . . . Manual 5 | . 5 . Terminals 11 | . 11 . Fabricators . | . . . Repair Stations . | . . . Recycling Units . | . . . Scanalyzers . | . . . Garrison Access . | . . . Terminal Hacks 4 | . 4 . Emergency Access Points 1 | . 1 . Terminal Index 1 | . 1 . Alert Level 1 | . 1 . Unreport Threat 1 | . 1 . Fabricator Hacks . | . . . Repair Station Hacks . | . . . Recycling Unit Hacks . | . . . Scanalyzer . | . . . Garrison Access Hacks . | . . . Unauthorized Hacks . | . . . Terminals . | . . . Fabricators . | . . . Repair Stations . | . . . Recycling Units . | . . . Scanalyzers . | . . . Garrison Access . | . . . Data Cores Recovered . | . . . Used . | . . . Hacking Detections 6 | . 6 . Full Trace Events . | . . . Feedback Events . | . . . Feedback Blocked . | . . . Robot Schematics Acquired . | . . . Robots Built . | . . . Authchips . | . . . Time . | . . . Total Robot Build Rating . | . . . Part Schematics Acquired . | . . . Parts Built . | . . . Authchips . | . . . Time . | . . . Total Part Build Rating . | . . . Parts Repaired . | . . . Time . | . . . Parts Recycled . | . . . Recycled Matter . | . . . Retrieved Matter . | . . . Retrieved Components . | . . . Parts Scanalyzed . | . . . Part Schematics Acquired . | . . . Parts Damaged . | . . . Bothacking | -11 -10 -10 ------------ Run | Yrd Mat Min Used RIF Installer . | . . . Robots Hacked . | . . . Non-combat . | . . . Combat . | . . . Robot Hacks Applied . | . . . Relay Couplers Released . | . . . Fabnet Peak Effective % . | . . . Robots Rewired . | . . . Allies Hacked . | . . . Hacks Repelled . | . . . Allies | -11 -10 -10 -------- Run | Yrd Mat Min Total Allies . | . . . Largest Group . | . . . Highest-Rated Group . | . . . Highest-Rated Ally . | . . . Total Orders . | . . . Ally Attacks . | . . . Total Damage . | . . . Kills . | . . . Allies Corrupted . | . . . Allies Melted . | . . . Intel | -11 -10 -10 ------- Run | Yrd Mat Min Robot Analysis Total . | . . . Derelict Logs Recovered . | . . . Drone Launches . | . . . Drone Recoveries . | . . . Exploration | -11 -10 -10 ------------- Run | Yrd Mat Min Turns Passed 996 | 113 517 366 Spaces Moved 758 | 56 427 275 Core 1 | 1 . . Treads . | . . . Legs . | . . . Wheels 757 | 55 427 275 Hover . | . . . Flight . | . . . Fastest Speed 50 | 50 90 90 Average Speed 91 | 88 90 94 Slowest Speed 95 | 90 90 95 Overloaded Moves . | . . . Propulsion Burnouts . | . . . Robots Hopped . | . . . Cave-ins Triggered . | . . . Exploration Rate (%) 42 | 5 69 53 Regions Visited 2 Branch Regions 1 Pre-discovered Areas . | . . . Known Exits Taken 1 | . 1 . Unknown Exits Taken 1 | 1 . . Scrap Searched 1 | . . 1 Spaces Dug . | . . . Terrain Destroyed . | . . . Melee . | . . . Projectile . | . . . AOE . | . . . Terrain Rammed . | . . . Walls Destroyed . | . . . Machines Disabled . | . . . Actions | -11 -10 -10 --------- Run | Yrd Mat Min Total 923 | 88 500 335 Wait 29 | 5 20 4 Move 757 | 56 426 275 Hop . | . . . Pick Up 23 | 5 9 9 Fast Attach 10 | 7 2 1 Attach 7 | . 3 4 Detach 4 | . 2 2 Swap . | . . . Drop 9 | . 4 5 Fire 79 | 15 34 30 Melee . | . . . Ram . | . . . Kick . | . . . Crush . | . . . Escape Stasis . | . . . Rewire . | . . . Trap 5 | . . 5 Miscellaneous . | . . . Route ------- -11/Scrapyard -10/Materials (discovered 4 exits: *Mat x2 / *Min x2) -10/Mines (discovered 1 exit: *Mat) History --------- Turn | Location | Event 8 | -11/Scrapyard | Discovered new exit (range 15) 114 | -11/Scrapyard | Entered Materials 207 | -10/Materials | Discovered new exit (range 8) 222 | -10/Materials | Discovered new exit (range 13) 309 | -10/Materials | Build established: Mutant 371 | -10/Materials | Discovered new exit (range 16) 438 | -10/Materials | Identified exit to Materials 523 | -10/Materials | Core integrity fell below 50% 564 | -10/Materials | Discovered new exit (range 16) 576 | -10/Materials | Identified exit to Mines 631 | -10/Materials | Entered Mines 762 | -10/Mines | Found a hidden stash of uninstalled traps 850 | -10/Mines | Discovered exit to Materials (range 12) 863 | -10/Mines | Core integrity fell below 20% 997 | -10/Mines | Destroyed by S-10 Pest with Light Assault Rifle Last Messages --------------- 00915_ Acquired 10 matter. 00919_ Acquired Lgt. Ion Engine. 00934_ T-07 Excavator is excavating. 00935_ U-05 Engineer lays Concrete. 00973_ Dropped Blade Trap. 00974_ Installed Blade Trap. 00976_ Dropped Blade Trap. 00976_ Installed Blade Trap. 00983_ Dropped Blade Trap. 00984_ Installed Blade Trap. 00986_ S-10 Pest triggered Blade Trap. 00986_ Massive razor-sharp blades shoot up from within the floor. 00986_ Lgt. Ion Engine severed. 00986_ Flight Unit severed. 00986_ Dropped Blade Trap. 00987_ Installed Blade Trap. 00989_ S-10 Pest destroyed. 00989_ R-06 Scavenger collects Flight Unit. 00990_ Acquired 4 matter. 00993_ Acquired 2 matter. Map ----- +----------------------------------------------------+ | ??????????????????????# #???????????????###??? | | ??????????????????????# """ #????????????### #??? | | ???????####???????????# """ #???????????## #??? | | ??????? #???????????# """ #??????????## #??? | | ?????### #???????????# #?????????## #??? | | ###?## ##??????????# < #???????### #???? | | # ## #??????????### ##??????## #????? | | #????????????# #???????# ##????? | | #????????????# #???????# #?????? | | ##????????????# #####???## ##?????? | | # #?????????????# ##???## #??????? | | ## ## ##?####???????# #????# ##?????? | | ?###### ### ##??????## #???## #?????? | | ??????# ##??????# #???# #?????? | | ??????# #??????## ##??## ##????? | | ??????# #???????## ###???# ##???? | | ??????# ##?????####=#?????# #???? | | ??????## ##?????#=% =#?????# #???? | | ?###???# ###???#=####????## ##???? | | ## #??## #####*#??????## ##????? | | # #??#### ^^ [#?????## ##????? | | # #????## ####%#?????# #????? | | #????# """ #??#s#?????# #??? | | ##### """ #??#=#?????# #### #?? | | """ #?#^#?????# #??## #?? | | ###@###???# #???## ##?? | | ###### #???# #?????# ####??? | | ##??????## #???# #??????###?????? | | ???????????## ###### ##### #??????####????? | | ?????????????### #?## r ## ######## ###??? | | ???????????????## #?# !%! ## ##?? | | ????????????????## ##?# #?? | | ??????????????????###??## ##### #?? | | ????????????????????????# ##?## ##?? | | ????????????????????????# ## ##?##########??? | | ????????????????????????## #### #?????????????? | | ?????????????????????????####?## #?????????????? | | ????????????????????????????### #######???????? | | ???????????????????????????## ## ##??????? | | ???????????????????????????# #??????? | | ???????????????????????????# #??????? | | ???????????????????????????# ## ##??????? | | ???????????????????????????# ##########???????? | | ??????????????????????????## ##????????????????? | | ??????????????????????????# ##?????????????????? | | ??????????????????????????# ##?????????????????? | | ??????????????????????????# ##????????????????? | | ??????????????????????????# ##???????????????? | | ?????????????????????????## #???????????????? | | ????????????????????????## #???????????????? | +----------------------------------------------------+ Best States ------------- Heat Dissipation 25 Energy Generation 10 Energy Capacity 125 Matter Stores 300 Matter Capacity 300 Sight Range 16 Terrain Scan Range 16 Terrain Scan Density 10 Evasion (%) 42 Targeting Accuracy 5 Item Schematics ----------------- None Robot Schematics ------------------ None Fabricated ------------ Nothing Alien Tech Used ----------------- None Achievements -------------- None Challenges ------------ None Game ------ Seed LongswordDamperBlade Manual? 0 Play Time 00:16:05 Cumulative 26.2 hours Start 2024.06.07 @ 15:20:01 End 2024.06.08 @ 11:33:07 Sessions 1 Manual Loads 0 Difficulty Rogue Special Mode None Game No. 16 Rogue 15 Adventurer 0 Explorer 1 Win Type - Total 2 Types 2/0/0/0/0/0/0/0/0 Lore% 22 Gallery% 26 Achievement% 28 Wizard Run 0 Options --------- Layout 0 ASCII 0 Keyboard 0 Movement Mouse Keybinds 0 Fullscreen 2 Font 18/SmallcapsGlow Map View 76x50 Zoom Use 0% Tactical HUD 1 Map Filters NONE Filters NONE Steam 1 RUN: 934b5cd7-fe29-4655-8db3-a50c506e69a8